[Event "Croatian junior league 2021"]
[Site "Rabac"]
[Date "2021.04.08"]
[Round "5.10"]
[White "Stjepic, Borna"]
[Black "Sagovac, Kristijan"]
[Result "1-0"]
[ECO "B23"]
[WhiteElo "1825"]
[BlackElo "1920"]
[Annotator "ChessBase"]
[PlyCount "111"]
[EventDate "2021.04.06"]
[EventType "swiss"]
[EventCountry "CRO"]
[SourceTitle "playchess.com"]
[Source "ChessBase"]
[SourceQuality "1"]
[TimeControl "5400+30"]

1. e4 {[%emt 0:00:00]} c5 {[%emt 0:00:00]} 2. Nc3 {[%emt 0:00:00]} Nc6 {[%emt 0:00:19]} 3. Bb5 {[%emt 0:00:03]} g6 {[%emt 0:00:16]} 4. Bxc6 {[%emt 0:00:46]} dxc6 {[%emt 0:00:08]} 5. d3 {[%emt 0:00:07]} Bg7 {[%emt 0:00:23]} 6. Nge2 {[%emt 0:02:38]} Nf6 {[%emt 0:02:08]} 7. h3 {[%emt 0:02:43]} e5 {[%emt 0:00:48]} 8. O-O {[%emt 0:02:28]} Be6 {[%emt 0:02:00]} 9. Be3 {[%emt 0:05:57]} b6 {[%emt 0:01:19]} 10. f4 {[%emt 0:00:51]} exf4 {[%emt 0:03:49]} 11. Nxf4 {[%emt 0:00:14]} Qd7 {[%emt 0:00:59]} 12. Qd2 {[%emt 0:07:31]} O-O {[%emt 0:02:51]} 13. a4 {[%emt 0:06:43]} a5 {[%emt 0:04:24]} 14. Rf2 {[%emt 0:06:21]} Ne8 {[%emt 0:02:49]} 15. Raf1 {[%emt 0:08:58]} Bd4 {[%emt 0:04:40]} 16. Nce2 {[%emt 0:02:24]} Ng7 {[%emt 0:02:48]} 17. Nxe6 {[%emt 0:06:38]} Bxe3 {[%emt 0:00:59]} 18. Qxe3 {[%emt 0:00:05]} Qxe6 {[%emt 0:02:00]} 19. Qg5 {[%emt 0:03:33]} f5 {[%emt 0:07:21]} 20. Ng3 {[%emt 0:00:49]} fxe4 {[%emt 0:01:50]} 21. Rxf8+ {[%emt 0:01:44]} Rxf8 {[%emt 0:00:01]} 22. Rxf8+ {[%emt 0:00:16]} Kxf8 {[%emt 0:00:06]} 23. Nxe4 {[%emt 0:00:29]} Ne8 {[%emt 0:22:38]} 24. Qd8 {[%emt 0:04:23]} b5 {[%emt 0:11:50]} 25. axb5 {[%emt 0:02:28]} cxb5 {[%emt 0:01:13]} 26. Qxa5 {[%emt 0:01:03]} Qd7 {[%emt 0:03:08]} 27. Qb6 {[%emt 0:04:05]} Qd4+ {[%emt 0:04:13]} 28. Kf1 {[%emt 0:00:21]} Qxb2 {[%emt 0:01:17]} 29. Qxc5+ {[%emt 0:00:11]} Kg8 {[%emt 0:03:39]} 30. Qc6 {[%emt 0:04:39]} Kf8 {[%emt 0:05:20]} 31. Qc3 {[%emt 0:00:49]} Qxc3 {[%emt 0:02:10]} 32. Nxc3 {[%emt 0:00:02]} Nc7 {[%emt 0:00:53]} 33. Kf2 {[%emt 0:00:17]} Ke7 {[%emt 0:00:38]} 34. Ke3 {[%emt 0:01:54]} Kd6 {[%emt 0:05:15]} 35. Ne4+ {[%emt 0:01:57]} Kc6 {[%emt 0:00:51]} 36. c4 {[%emt 0:03:27]} bxc4 {[%emt 0:00:45]} 37. dxc4 {[%emt 0:00:01]} Ne6 {[%emt 0:00:00]} 38. h4 {[%emt 0:00:27]} h5 {[%emt 0:00:35]} 39. Ng5 {[%emt 0:01:01]} Ng7 {[%emt 0:00:35]} 40. Kf4 {[%emt 0:01:51]} Kc5 {[%emt 0:01:01]} 41. Nf3 {[%emt 0:00:33]} Kxc4 {[%emt 0:01:21]} 42. Ne5+ {[%emt 0:00:09]} Kd5 {[%emt 0:00:34]} 43. Nxg6 {[%emt 0:00:03]} Ke6 {[%emt 0:00:35]} 44. Kg5 {[%emt 0:00:19]} Kf7 {[%emt 0:00:31]} 45. Nf4 {[%emt 0:00:15]} Kg8 {[%emt 0:00:10]} 46. Nxh5 {[%emt 0:00:18]} Ne6+ {[%emt 0:00:01]} 47. Kf6 {[%emt 0:01:01]} Nd4 {[%emt 0:00:33]} 48. Nf4 {[%emt 0:00:31]} Nc2 {[%emt 0:00:04]} 49. g4 {[%emt 0:00:38]} Ne3 {[%emt 0:00:03]} 50. g5 {[%emt 0:00:55]} Ng4+ {[%emt 0:00:04]} 51. Kf5 {[%emt 0:00:38]} Ne3+ {[%emt 0:00:24]} 52. Kg6 {[%emt 0:00:31]} Nc4 {[%emt 0:00:14]} 53. h5 {[%emt 0:00:41]} Nd6 {[%emt 0:01:25]} 54. h6 {[%emt 0:00:59]} Ne8 {[%emt 0:01:52]} 55. h7+ {[%emt 0:00:33]} Kh8 {[%emt 0:00:05]} 56. Kh6 {[%emt 0:00:50]} 1-0

[Event "Croatian junior league 2021"]
[Site "Rabac"]
[Date "2021.04.08"]
[Round "5.11"]
[White "Dumancic, Simun"]
[Black "Vukojevic, Toni"]
[Result "1-0"]
[ECO "C54"]
[WhiteElo "1883"]
[BlackElo "1538"]
[Annotator "NA"]
[PlyCount "85"]
[EventDate "2021.04.06"]
[EventType "swiss"]
[EventCountry "CRO"]
[SourceTitle "playchess.com"]
[Source "ChessBase"]
[SourceQuality "1"]
[TimeControl "5400+30"]

1. e4 {[%emt 0:00:00]} e5 {[%emt 0:00:00]} 2. Nf3 {[%emt 0:00:00]} Nc6 {[%emt 0:00:00]} 3. Bc4 {[%emt 0:00:00]} Bc5 {[%emt 0:00:00]} 4. c3 {[%emt 0:00:06]} Nf6 {[%emt 0:00:00]} 5. d4 {[%emt 0:00:08]} exd4 {[%emt 0:00:00]} 6. cxd4 {[%emt 0:00:05]} Bb4+ {[%emt 0:00:00]} 7. Nc3 {[%emt 0:00:04]} Nxe4 {[%emt 0:00:50]} 8. O-O {[%emt 0:00:05]} Bxc3 {[%emt 0:00:13]} 9. d5 {[%emt 0:00:05]} Ne5 {[%emt 0:03:47]} 10. Qe2 {[%emt 0:13:05]} Nxf3+ {[%emt 0:01:09]} (10... O-O $5 {[%cal Re4d6]} 11. bxc3 Nxc4 12. Qxe4 Nd6 $15) 11. Qxf3 {[%emt 0:00:40] [#]} O-O $1 {[%emt 0:00:30]} 12. bxc3 {[%emt 0:01:49]} Qh4 {[%emt 0:01:26]} 13. Bd3 {[%emt 0:19:31]} Nf6 $14 {[%emt 0:02:21]} ({Black should try} 13... Nc5 $15) 14. d6 {[%emt 0:08:31]} Ng4 {[%emt 0:04:49]} 15. Bf4 {[%emt 0:03:19]} c6 {[%emt 0:14:33]} 16. Rae1 {[%emt 0:10:08]} Nf6 {[%emt 0:03:07]} 17. Bc4 {[%emt 0:05:06]} b5 {[%emt 0:02:01]} 18. Bxb5 {[%emt 0:04:23]} Qh5 {[%emt 0:07:10]} 19. Bd3 {[%emt 0:02:09]} Qxf3 {[%emt 0:01:08]} 20. gxf3 {[%emt 0:00:07]} Nd5 {[%emt 0:00:08]} 21. Bd2 {[%emt 0:00:28]} a5 {[%emt 0:01:29]} 22. Rb1 {[%emt 0:07:44]} Ba6 {[%emt 0:01:38]} 23. Bxa6 {[%emt 0:00:37]} Rxa6 {[%emt 0:00:04]} 24. Rb7 {[%emt 0:00:34]} Rd8 {[%emt 0:00:30]} 25. Rfb1 {[%emt 0:00:13]} h6 {[%emt 0:03:41]} 26. c4 {[%emt 0:02:19]} Nf6 {[%emt 0:00:47]} 27. Rb8 {[%emt 0:01:04]} Rxb8 {[%emt 0:02:28]} 28. Rxb8+ {[%emt 0:00:04]} Kh7 {[%emt 0:00:06]} 29. Bc3 {[%emt 0:08:17]} Kg6 {[%emt 0:00:19]} 30. Rb7 {[%emt 0:01:01]} c5 {[%emt 0:00:51]} 31. Bxf6 {[%emt 0:01:52]} Kxf6 {[%emt 0:00:06]} 32. Rxd7 {[%emt 0:00:02]} Ke6 {[%emt 0:00:08]} 33. Re7+ {[%emt 0:00:14]} Kf6 {[%emt 0:02:03]} 34. Rc7 {[%emt 0:00:33]} Rxd6 {[%emt 0:00:43]} 35. Rxc5 {[%emt 0:00:22]} Rd4 {[%emt 0:02:04]} 36. Rxa5 {[%emt 0:03:53]} Rxc4 {[%emt 0:00:12]} 37. a4 {[%emt 0:00:30]} Rc3 {[%emt 0:01:09]} 38. Kg2 {[%emt 0:00:28]} Ra3 {[%emt 0:00:07]} 39. Ra7 {[%emt 0:00:55]} Ke6 {[%emt 0:00:40]} 40. a5 {[%emt 0:00:27]} g6 {[%emt 0:00:14]} 41. a6 {[%emt 0:00:07]} f6 {[%emt 0:01:00]} 42. Ra8 {[%emt 0:00:12]} Ke7 {[%emt 0:00:46]} 43. a7 {[%emt 0:00:06]} 1-0

[Event "Croatian junior league 2021"]
[Site "Rabac"]
[Date "2021.04.08"]
[Round "5.12"]
[White "Jakrlin, Mihael"]
[Black "Damjanovic, Stjepan"]
[Result "1-0"]
[ECO "A14"]
[WhiteElo "2106"]
[BlackElo "1890"]
[Annotator "RC"]
[PlyCount "131"]
[EventDate "2021.04.06"]
[EventType "swiss"]
[EventCountry "CRO"]
[SourceTitle "playchess.com"]
[Source "ChessBase"]
[SourceQuality "1"]
[TimeControl "5400+30"]

1. Nf3 {[%emt 0:02:18]} d5 {[%emt 0:00:00]} 2. g3 {[%emt 0:00:34]} Nf6 {[%emt 0:00:00]} 3. Bg2 {[%emt 0:00:04]} e6 {[%emt 0:00:00]} 4. O-O {[%emt 0:00:42]} Be7 {[%emt 0:00:00]} 5. c4 {[%emt 0:00:11]} O-O {[%emt 0:00:08]} 6. b3 {[%emt 0:00:06]} b6 {[%emt 0:00:43]} 7. Bb2 {[%emt 0:00:08]} Nbd7 {[%emt 0:00:32]} 8. e3 {[%emt 0:00:19]} c5 {[%emt 0:01:38]} 9. Qe2 {[%emt 0:00:12]} Ne4 {[%emt 0:04:38]} 10. d3 {[%emt 0:05:05]} Nd6 {[%emt 0:02:14]} 11. e4 {[%emt 0:03:20]} Bb7 {[%emt 0:01:14]} 12. Nbd2 {[%emt 0:01:30]} d4 {[%emt 0:07:50]} 13. e5 {[%emt 0:00:27]} Nf5 {[%emt 0:01:43]} 14. Bc1 {[%emt 0:05:29]} Qc7 {[%emt 0:03:09]} 15. Ne4 {[%emt 0:06:51]} h6 {[%emt 0:24:26]} 16. h4 {[%emt 0:05:03]} a5 {[%emt 0:03:30]} 17. a4 {[%emt 0:03:39]} Bc6 {[%emt 0:02:48]} 18. Bf4 {[%emt 0:07:04]} Qb7 {[%emt 0:01:49]} 19. Kh2 {[%emt 0:00:51]} Bd8 {[%emt 0:00:48]} 20. Kh3 {[%emt 0:06:01]} Bxe4 {[%emt 0:02:33]} 21. dxe4 {[%emt 0:04:23]} Ne7 {[%emt 0:00:53]} 22. Nh2 {[%emt 0:00:34]} Bc7 {[%emt 0:02:12]} 23. Qh5 {[%emt 0:00:08]} Ng6 {[%emt 0:18:13]} 24. Ng4 {[%emt 0:02:55]} Qb8 {[%emt 0:01:31]} 25. Bxh6 {[%emt 0:01:28]} Bxe5 {[%emt 0:04:37]} 26. Bg5 {[%emt 0:04:26]} Ra7 {[%emt 0:03:01]} 27. f4 {[%emt 0:00:17]} Nf6 {[%emt 0:01:55]} 28. Bxf6 {[%emt 0:01:27]} Bxf6 {[%emt 0:00:06]} 29. e5 {[%emt 0:01:14]} Bd8 {[%emt 0:01:29]} 30. Be4 {[%emt 0:00:10]} Qc8 {[%emt 0:02:55]} 31. Bxg6 {[%emt 0:03:56]} fxg6 {[%emt 0:00:20]} 32. Qxg6 {[%emt 0:00:01]} Qc6 {[%emt 0:00:33]} 33. Ra2 {[%emt 0:02:21]} Qe8 {[%emt 0:02:10]} 34. Qxe8 {[%emt 0:00:05]} Rxe8 {[%emt 0:00:06]} 35. Nf2 {[%emt 0:00:18]} Be7 {[%emt 0:00:33]} 36. h5 {[%emt 0:00:14]} Rf8 {[%emt 0:00:37]} 37. Nd3 {[%emt 0:00:19]} Bd8 {[%emt 0:00:32]} 38. g4 {[%emt 0:00:06]} Raf7 {[%emt 0:00:10]} 39. Raf2 {[%emt 0:00:05]} Bc7 {[%emt 0:02:29]} 40. f5 {[%emt 0:00:11]} exf5 {[%emt 0:00:09]} 41. gxf5 {[%emt 0:00:02]} Re8 {[%emt 0:00:25]} 42. Re2 {[%emt 0:00:08]} Ree7 {[%emt 0:00:44]} 43. Kg4 {[%emt 0:00:15]} Kh7 {[%emt 0:00:19]} 44. e6 {[%emt 0:00:18]} Rf6 {[%emt 0:00:28]} 45. Nf2 {[%emt 0:00:45]} Rf8 {[%emt 0:01:15]} 46. Ne4 {[%emt 0:00:12]} Kh6 {[%emt 0:00:17]} 47. Rf3 {[%emt 0:01:09]} Bb8 {[%emt 0:02:57]} 48. Ng5 {[%emt 0:00:19]} Rf6 {[%emt 0:00:14]} 49. Rg2 {[%emt 0:00:18]} Bc7 {[%emt 0:00:42]} 50. Kh4 {[%emt 0:01:01]} Bb8 {[%emt 0:00:38]} 51. Ne4 {[%emt 0:00:31]} Rf8 {[%emt 0:02:10]} 52. Rg6+ {[%emt 0:00:07]} Kh7 {[%emt 0:00:03]} 53. Ng5+ {[%emt 0:00:06]} Kh8 {[%emt 0:00:22]} 54. h6 {[%emt 0:00:05]} Be5 {[%emt 0:01:38]} 55. Kg4 {[%emt 0:00:50]} Bf6 {[%emt 0:00:30]} 56. Rh3 {[%emt 0:01:10]} Kg8 {[%emt 0:00:31]} 57. hxg7 {[%emt 0:01:18]} Rxg7 {[%emt 0:00:28]} 58. Rxg7+ {[%emt 0:00:13]} Kxg7 {[%emt 0:00:31]} 59. Rh7+ {[%emt 0:00:20]} Kg8 {[%emt 0:00:08]} 60. Rd7 {[%emt 0:00:09]} Rd8 {[%emt 0:00:18]} 61. Ne4 {[%emt 0:00:08]} Rf8 {[%emt 0:00:35]} 62. e7 {[%emt 0:00:11]} Bxe7 {[%emt 0:00:30]} 63. Rxe7 {[%emt 0:00:02]} Rd8 {[%emt 0:00:59]} 64. Kg5 {[%emt 0:00:11]} d3 {[%emt 0:00:26]} 65. Kg6 {[%emt 0:00:08]} Kf8 {[%emt 0:00:34]} 66. Rf7+ {[%emt 0:00:07]} 1-0

[Event "Croatian junior league 2021"]
[Site "Rabac"]
[Date "2021.04.08"]
[Round "5.13"]
[White "Mandaric, Fran"]
[Black "Troselj, Ivan"]
[Result "1/2-1/2"]
[ECO "B15"]
[WhiteElo "1684"]
[BlackElo "1962"]
[Annotator "ChessBase"]
[PlyCount "65"]
[EventDate "2021.04.06"]
[EventType "swiss"]
[EventCountry "CRO"]
[SourceTitle "playchess.com"]
[Source "ChessBase"]
[SourceQuality "1"]
[TimeControl "5400+30"]

1. e4 {[%emt 0:00:00]} c6 {[%emt 0:00:11]} 2. d4 {[%emt 0:00:00]} d5 {[%emt 0:00:05]} 3. Nc3 {[%emt 0:00:00]} dxe4 {[%emt 0:00:08]} 4. Nxe4 {[%emt 0:00:00]} Nf6 {[%emt 0:00:04]} 5. Nxf6+ {[%emt 0:00:00]} exf6 {[%emt 0:00:03]} 6. c3 {[%emt 0:00:09]} Bd6 {[%emt 0:00:05]} 7. Bd3 {[%emt 0:00:22]} O-O {[%emt 0:00:35]} 8. Qc2 {[%emt 0:00:17]} Re8+ {[%emt 0:00:37]} 9. Ne2 {[%emt 0:00:27]} h6 {[%emt 0:02:09]} 10. Bd2 {[%emt 0:00:43]} Bg4 {[%emt 0:01:03]} 11. f3 {[%emt 0:02:09]} Be6 {[%emt 0:00:30]} 12. c4 {[%emt 0:09:55]} Na6 {[%emt 0:06:29]} 13. O-O {[%emt 0:09:33]} Nb4 {[%emt 0:01:46]} 14. Bxb4 {[%emt 0:02:13]} Bxb4 {[%emt 0:00:03]} 15. a3 {[%emt 0:01:28]} Ba5 {[%emt 0:00:49]} 16. b4 {[%emt 0:05:01]} Bb6 {[%emt 0:00:28]} 17. c5 {[%emt 0:02:39]} Bc7 {[%emt 0:01:25]} 18. Rae1 {[%emt 0:11:10]} Qd7 {[%emt 0:07:43]} 19. Qd2 {[%emt 0:08:27]} Rad8 {[%emt 0:01:32]} 20. Kh1 {[%emt 0:04:11]} f5 {[%emt 0:05:33]} 21. Bb1 {[%emt 0:09:26]} Bc4 {[%emt 0:11:11]} 22. Rf2 {[%emt 0:03:46]} Be5 {[%emt 0:09:44]} 23. Rd1 {[%emt 0:03:07]} Bxd4 {[%emt 0:03:03]} 24. Bxf5 {[%emt 0:09:49]} Bxf2 {[%emt 0:22:49]} 25. Bxd7 {[%emt 0:03:36]} Rxe2 {[%emt 0:00:15]} 26. Qc3 {[%emt 0:03:20]} Be6 {[%emt 0:04:13]} 27. Qd3 {[%emt 0:03:04]} Ra2 {[%emt 0:00:09]} 28. Qb1 {[%emt 0:01:47]} Re2 {[%emt 0:01:16]} 29. Bxe6 {[%emt 0:00:44]} Rxd1+ {[%emt 0:00:57]} 30. Qxd1 {[%emt 0:00:05]} Re1+ {[%emt 0:00:04]} 31. Qxe1 {[%emt 0:00:05]} Bxe1 {[%emt 0:00:05]} 32. Bc8 {[%emt 0:00:13]} b6 {[%emt 0:00:07]} 33. Bb7 {[%emt 0:01:00]} 1/2-1/2

[Event "Croatian junior league 2021"]
[Site "Rabac"]
[Date "2021.04.08"]
[Round "5.14"]
[White "Birkic, Josip"]
[Black "Juric, Ester"]
[Result "1-0"]
[ECO "D37"]
[WhiteElo "1972"]
[BlackElo "1587"]
[Annotator "ChessBase"]
[PlyCount "55"]
[EventDate "2021.04.06"]
[EventType "swiss"]
[EventCountry "CRO"]
[SourceTitle "playchess.com"]
[Source "ChessBase"]
[SourceQuality "1"]
[TimeControl "5400+30"]

1. d4 {[%emt 0:07:11]} d5 {[%emt 0:00:00]} 2. c4 {[%emt 0:00:10]} e6 {[%emt 0:00:00]} 3. Nc3 {[%emt 0:00:07]} Be7 {[%emt 0:00:00]} 4. Nf3 {[%emt 0:00:10]} Nf6 {[%emt 0:00:00]} 5. Bf4 {[%emt 0:00:08]} a6 {[%emt 0:04:37]} 6. e3 {[%emt 0:03:53]} O-O {[%emt 0:01:26]} 7. Qc2 {[%emt 0:01:12]} dxc4 {[%emt 0:11:07]} 8. Bxc4 {[%emt 0:00:15]} c5 {[%emt 0:01:04]} 9. dxc5 {[%emt 0:03:20]} Bxc5 {[%emt 0:00:16]} 10. Rd1 {[%emt 0:00:40]} Qe8 {[%emt 0:02:55]} 11. O-O {[%emt 0:03:22]} Nbd7 {[%emt 0:03:10]} 12. Ne5 {[%emt 0:09:21]} Nxe5 {[%emt 0:06:10]} 13. Bxe5 {[%emt 0:00:29]} Nd7 {[%emt 0:00:24]} 14. Bg3 {[%emt 0:05:37]} b5 {[%emt 0:04:10]} 15. Bd3 {[%emt 0:01:00]} h6 {[%emt 0:00:12]} 16. Ne4 {[%emt 0:01:42]} Be7 {[%emt 0:00:34]} 17. Nd6 {[%emt 0:02:42]} Qd8 {[%emt 0:00:14]} 18. Be4 {[%emt 0:09:29]} Ra7 {[%emt 0:02:42]} 19. Rc1 {[%emt 0:03:17]} Bxd6 {[%emt 0:02:17]} 20. Bxd6 {[%emt 0:01:23]} Re8 {[%emt 0:00:01]} 21. Rfd1 {[%emt 0:01:14]} f5 {[%emt 0:10:57]} 22. Bf3 {[%emt 0:00:43]} Qf6 {[%emt 0:00:27]} 23. Bc6 {[%emt 0:07:16]} Rd8 {[%emt 0:03:28]} 24. e4 {[%emt 0:07:07]} Kh7 {[%emt 0:15:43]} 25. f4 {[%emt 0:04:12]} Qf7 {[%emt 0:03:41]} 26. e5 {[%emt 0:07:14]} Qg8 {[%emt 0:01:02]} 27. Qf2 {[%emt 0:00:26]} Nxe5 {[%emt 0:02:31]} 28. Qxa7 {[%emt 0:02:23]} 1-0

[Event "Croatian junior league 2021"]
[Site "Rabac"]
[Date "2021.04.08"]
[Round "5.16"]
[White "Begic, Domagoj"]
[Black "Colev, Ivor"]
[Result "*"]
[ECO "B12"]
[WhiteElo "1706"]
[BlackElo "1847"]
[Annotator "NA"]
[PlyCount "47"]
[EventDate "2021.04.06"]
[EventType "swiss"]
[EventCountry "CRO"]
[SourceTitle "playchess.com"]
[Source "ChessBase"]
[SourceQuality "1"]
[TimeControl "5400+30"]

1. e4 {[%emt 0:00:00]} c6 {[%emt 0:02:01]} 2. d4 {[%emt 0:00:33]} d5 {[%emt 0:00:08]} 3. e5 {[%emt 0:00:10]} Bf5 {[%emt 0:00:07]} 4. Nf3 {[%emt 0:00:07]} e6 {[%emt 0:00:52]} 5. Be2 {[%emt 0:00:05]} Ne7 $11 {[%emt 0:00:23]} 6. Nbd2 {[%emt 0:00:38]} h6 {[%emt 0:00:46]} 7. Nb3 {[%emt 0:00:13]} Nd7 {[%emt 0:00:56]} 8. O-O {[%emt 0:00:21]} Qc7 {[%emt 0:02:54]} 9. c3 {[%emt 0:00:31]} g5 {[%emt 0:01:11]} 10. Bd2 {[%emt 0:00:28]} Bg7 {[%emt 0:18:35]} 11. Ne1 {[%emt 0:15:07]} f6 {[%emt 0:12:12]} 12. Bh5+ {[%emt 0:02:12]} Kd8 {[%emt 0:00:27]} 13. f4 {[%emt 0:01:52]} gxf4 {[%emt 0:10:06]} 14. exf6 {[%emt 0:00:41]} Bxf6 {[%emt 0:00:38]} 15. Bxf4 {[%emt 0:00:19]} e5 {[%emt 0:00:55]} 16. Bg3 {[%emt 0:01:17]} Rg8 {[%emt 0:02:28]} 17. Nd3 {[%emt 0:02:19]} Rg5 {[%emt 0:06:29]} 18. Ndc5 {[%emt 0:02:28]} b6 {[%emt 0:03:52]} 19. Rxf5 {[%emt 0:02:05]} bxc5 {[%emt 0:00:23]} 20. Nxc5 {[%emt 0:00:51]} Nxf5 {[%emt 0:03:34]} 21. Ne6+ {[%emt 0:00:18]} Kc8 {[%emt 0:00:03]} 22. Nxc7 {[%emt 0:00:12]} Nxg3 {[%emt 0:01:55]} 23. Nxa8 {[%emt 0:01:03]} Nxh5 {[%emt 0:00:05]} 24. h4 {[%emt 0:00:21]} *

[Event "Croatian junior league 2021"]
[Site "Rabac"]
[Date "2021.04.08"]
[Round "5.18"]
[White "Jakovic, Roko"]
[Black "Mijic, Karlo"]
[Result "0-1"]
[ECO "E20"]
[WhiteElo "1846"]
[BlackElo "1599"]
[Annotator "NA"]
[PlyCount "206"]
[EventDate "2021.04.06"]
[EventType "swiss"]
[EventCountry "CRO"]
[SourceTitle "playchess.com"]
[Source "ChessBase"]
[SourceQuality "1"]
[TimeControl "5400+30"]

1. d4 {[%emt 0:00:00]} Nf6 {[%emt 0:01:39]} 2. c4 {[%emt 0:00:00]} e6 {[%emt 0:00:05]} 3. Nc3 {[%emt 0:00:00]} Bb4 {[%emt 0:00:05]} 4. g3 {[%emt 0:00:00]} O-O {[%emt 0:00:10]} 5. Bg2 {[%emt 0:00:06]} Bxc3+ {[%emt 0:00:09]} 6. bxc3 {[%emt 0:00:08]} d6 {[%emt 0:00:05]} 7. Nf3 {[%emt 0:03:15]} Nc6 {[%emt 0:00:24]} 8. O-O {[%emt 0:01:12]} Rb8 {[%emt 0:01:53]} 9. Rb1 {[%emt 0:06:02]} Na5 {[%emt 0:00:25]} 10. Qd3 {[%emt 0:00:40]} b6 {[%emt 0:01:40]} 11. Bg5 {[%emt 0:04:09]} Ba6 {[%emt 0:00:56]} 12. Nd2 {[%emt 0:02:49]} h6 {[%emt 0:00:10]} 13. Bxf6 {[%emt 0:02:57]} Qxf6 $17 {[%emt 0:00:11]} 14. e4 {[%emt 0:06:02]} Qe7 {[%emt 0:03:38]} 15. Rfe1 {[%emt 0:01:53]} e5 {[%emt 0:00:06]} 16. Bf1 {[%emt 0:07:14]} Qe6 {[%emt 0:04:40]} 17. f4 {[%emt 0:09:50]} Rbd8 {[%emt 0:01:12]} 18. f5 {[%emt 0:02:04]} Qf6 {[%emt 0:00:57]} 19. d5 {[%emt 0:00:36]} g6 {[%emt 0:01:04]} 20. Qf3 {[%emt 0:05:42]} Kg7 {[%emt 0:01:42]} 21. Bd3 {[%emt 0:02:59]} Qg5 {[%emt 0:00:49]} 22. Rb2 {[%emt 0:01:42]} h5 {[%emt 0:00:27]} 23. h4 {[%emt 0:01:43]} Qh6 {[%emt 0:01:31]} 24. Kh2 {[%emt 0:05:17]} g5 {[%emt 0:02:10]} 25. f6+ {[%emt 0:14:17]} Qxf6 {[%emt 0:10:22]} 26. Qxf6+ {[%emt 0:00:14]} Kxf6 {[%emt 0:00:07]} 27. Rf1+ {[%emt 0:00:34]} Kg6 {[%emt 0:00:11]} 28. hxg5 {[%emt 0:00:14]} Kxg5 {[%emt 0:05:17]} 29. Rf5+ {[%emt 0:00:13]} Kg6 {[%emt 0:00:59]} 30. Be2 {[%emt 0:00:43]} Rh8 {[%emt 0:00:44]} 31. Rb1 {[%emt 0:00:47]} Bc8 {[%emt 0:00:23]} 32. Rf2 {[%emt 0:00:45]} Rdf8 {[%emt 0:04:50]} 33. Rbf1 {[%emt 0:00:54]} f6 {[%emt 0:01:10]} 34. Nf3 {[%emt 0:01:41]} Nb7 {[%emt 0:03:03]} 35. Nh4+ {[%emt 0:02:21]} Kg5 {[%emt 0:00:40]} 36. Nf3+ {[%emt 0:02:41]} Kg6 {[%emt 0:02:23]} 37. Nh4+ {[%emt 0:00:05]} Kg7 {[%emt 0:00:16]} 38. Bd1 {[%emt 0:01:07]} Nc5 {[%emt 0:00:13]} 39. Bc2 {[%emt 0:00:04]} Bg4 {[%emt 0:05:30]} 40. a3 {[%emt 0:00:51]} Rh6 {[%emt 0:00:18]} 41. Kg2 {[%emt 0:02:47]} Kf7 {[%emt 0:02:22]} 42. Kh2 {[%emt 0:00:58]} Bd7 {[%emt 0:01:44]} 43. Nf5 {[%emt 0:00:31]} Bxf5 {[%emt 0:00:08]} 44. Rxf5 {[%emt 0:00:05]} Rg8 {[%emt 0:00:47]} 45. Kh3 {[%emt 0:00:27]} Rg4 {[%emt 0:00:42]} 46. Rxh5 {[%emt 0:01:54]} Rxg3+ {[%emt 0:00:32]} 47. Kxg3 {[%emt 0:00:25]} Rxh5 {[%emt 0:00:05]} 48. Rf2 {[%emt 0:01:43]} Rh1 {[%emt 0:00:54]} 49. Rh2 {[%emt 0:01:56]} Rc1 {[%emt 0:00:33]} 50. Kf3 {[%emt 0:02:21]} Ra1 {[%emt 0:01:38]} 51. Rh7+ {[%emt 0:02:53]} Ke8 {[%emt 0:00:04]} 52. Rxc7 {[%emt 0:00:19]} Rxa3 {[%emt 0:00:04]} 53. Ke2 {[%emt 0:00:33]} Rxc3 {[%emt 0:00:45]} 54. Kd2 {[%emt 0:01:08]} Rxc4 {[%emt 0:00:33]} 55. Rxa7 {[%emt 0:00:39]} Nxe4+ {[%emt 0:00:30]} 56. Kd3 {[%emt 0:00:24]} Rd4+ {[%emt 0:00:15]} 57. Ke3 {[%emt 0:00:05]} Nc5 {[%emt 0:00:28]} 58. Bg6+ {[%emt 0:00:31]} Kd8 {[%emt 0:00:28]} 59. Bf7 {[%emt 0:00:10]} f5 {[%emt 0:00:26]} 60. Ra8+ {[%emt 0:01:00]} Ke7 {[%emt 0:00:13]} 61. Bg8 {[%emt 0:00:04]} Rg4 {[%emt 0:01:06]} 62. Bh7 {[%emt 0:00:33]} f4+ {[%emt 0:00:33]} 63. Ke2 {[%emt 0:00:11]} e4 {[%emt 0:01:43]} 64. Rb8 {[%emt 0:00:12]} Rg2+ {[%emt 0:00:06]} 65. Kf1 {[%emt 0:00:03]} Rb2 {[%emt 0:00:05]} 66. Rg8 {[%emt 0:00:37]} Kf6 {[%emt 0:00:42]} 67. Re8 {[%emt 0:00:35]} f3 {[%emt 0:03:12]} 68. Bxe4 {[%emt 0:01:46]} Re2 {[%emt 0:00:07]} 69. Rf8+ {[%emt 0:00:05]} Kg7 {[%emt 0:00:07]} 70. Bxf3 {[%emt 0:00:05]} Kxf8 {[%emt 0:00:51]} 71. Kxe2 {[%emt 0:00:47]} Ke7 {[%emt 0:00:37]} 72. Ke3 {[%emt 0:02:49]} Kf6 {[%emt 0:00:10]} 73. Kd4 {[%emt 0:00:22]} Na6 {[%emt 0:00:05]} 74. Bg4 {[%emt 0:01:28]} Kg5 {[%emt 0:00:38]} 75. Bd7 {[%emt 0:00:15]} Kf4 {[%emt 0:00:13]} 76. Bb5 {[%emt 0:00:55]} Nc7 {[%emt 0:00:07]} 77. Bc6 {[%emt 0:00:30]} Kf3 {[%emt 0:00:31]} 78. Bd7 {[%emt 0:00:38]} Ke2 {[%emt 0:00:09]} 79. Bc6 {[%emt 0:00:58]} Kd2 {[%emt 0:00:10]} 80. Bd7 {[%emt 0:00:39]} b5 {[%emt 0:00:56]} 81. Bf5 {[%emt 0:01:12]} Kc1 {[%emt 0:00:55]} 82. Be4 {[%emt 0:00:57]} Kb2 {[%emt 0:00:08]} 83. Kd3 {[%emt 0:00:34]} b4 {[%emt 0:00:32]} 84. Kc4 {[%emt 0:00:22]} b3 {[%emt 0:00:05]} 85. Kb4 {[%emt 0:00:35]} Ka2 {[%emt 0:00:14]} 86. Ka5 {[%emt 0:00:27]} b2 {[%emt 0:02:31]} 87. Kb6 {[%emt 0:00:11]} Ne8 {[%emt 0:00:04]} 88. Kc6 {[%emt 0:00:18]} Kb3 {[%emt 0:00:32]} 89. Bb1 {[%emt 0:01:06]} Kc4 {[%emt 0:00:33]} 90. Ba2+ {[%emt 0:00:33]} Kd4 {[%emt 0:00:06]} 91. Bb1 {[%emt 0:00:28]} Ke5 {[%emt 0:01:33]} 92. Kb5 {[%emt 0:00:32]} Nf6 {[%emt 0:02:28]} 93. Kb4 {[%emt 0:00:29]} Ne4 {[%emt 0:00:04]} 94. Ka3 {[%emt 0:00:32]} Nd2 {[%emt 0:00:08]} 95. Kxb2 {[%emt 0:00:21]} Nxb1 {[%emt 0:00:04]} 96. Kxb1 {[%emt 0:00:01]} Kxd5 {[%emt 0:00:07]} 97. Kc1 {[%emt 0:00:37]} Ke4 {[%emt 0:00:08]} 98. Kd2 {[%emt 0:00:08]} Kd4 {[%emt 0:00:04]} 99. Ke2 {[%emt 0:00:55]} Kc3 {[%emt 0:00:06]} 100. Kd1 {[%emt 0:00:16]} Kd3 {[%emt 0:00:04]} 101. Ke1 {[%emt 0:00:07]} d5 {[%emt 0:00:06]} 102. Kd1 {[%emt 0:00:06]} d4 {[%emt 0:00:06]} 103. Kc1 {[%emt 0:00:04]} Ke2 {[%emt 0:00:19]} 0-1